bitfinex-derivatives/quotes_BTCF0:USTF0_20260314
["timestamp","ask_amount","ask_price","bid_price","bid_amount"]
[1773482146236,0.001,70593.0,70585.0,0.009]
[1773482146237,0.00144,70590.0,70585.0,0.009]
[1773482147138,0.00144,70589.0,70585.0,0.1486105]
[1773482147626,0.00144,70589.0,70585.0,0.009]
[1773482164356,0.00144,70589.0,70579.0,0.042498]
[1773482164748,0.00144,70589.0,70580.0,0.042498]
[1773482165153,0.00144,70589.0,70580.0,0.18317332]
[1773482165758,0.00144,70589.0,70588.0,0.009]
[1773482165958,0.00144,70589.0,70580.0,0.18317332]
[1773482167361,0.00144,70589.0,70581.0,0.042497]
[1773482171465,0.00144,70589.0,70581.0,0.18317232]
[1773482172167,0.009,70600.0,70585.0,0.042495]
[1773482172360,0.042488,70598.0,70586.0,0.14067532]
[1773482172562,0.042488,70597.0,70586.0,0.14067532]
[1773482172960,0.00144,70596.0,70587.0,0.14067532]
[1773482173155,0.31684,70608.0,70587.0,0.14067532]
[1773482173364,0.005,70608.0,70599.0,0.00367094]
[1773482173662,0.00144,70607.0,70595.0,0.12833155]
[1773482173864,0.001,70597.0,70595.0,0.11765028]
[1773482174067,0.00144,70596.0,70595.0,0.11230607]
[1773482176367,0.00144,70596.0,70595.0,0.12130607]
[1773482178869,0.042483,70605.0,70595.0,0.12130607]
[1773482179064,0.00288,70600.0,70595.0,0.12130607]
[1773482180469,0.00144,70604.0,70595.0,0.12130607]
[1773482181664,0.00144,70604.0,70595.0,0.11230607]
[1773482183467,0.043924,70604.0,70592.0,0.042491]
[1773482183665,0.043924,70604.0,70592.0,0.18142957]
[1773482183969,0.00288,70601.0,70593.0,0.13893857]
[1773482185677,0.043924,70604.0,70593.0,0.13893857]
[1773482190082,0.042485,70603.0,70593.0,0.13893857]
[1773482190581,0.00144,70604.0,70593.0,0.13893857]
[1773482190782,0.00288,70601.0,70593.0,0.13893857]
[1773482195586,0.00144,70600.0,70591.0,0.042491]
[1773482195786,0.00144,70599.0,70592.0,0.13893857]
[1773482195987,0.00144,70598.0,70592.0,0.13893857]
[1773482196192,0.00144,70597.0,70592.0,0.13893857]
[1773482196484,0.00144,70596.0,70592.0,0.13893857]
[1773482196681,0.00144,70595.0,70592.0,0.13893857]
[1773482196882,0.00144,70594.0,70592.0,0.13893857]
[1773482198973,0.00144,70594.0,70593.0,0.14792857]
[1773482201482,0.009,70602.0,70593.0,0.14792857]
[1773482201687,0.00144,70600.0,70593.0,0.14792857]
[1773482204993,0.00144,70599.0,70593.0,0.14792857]
[1773482206087,0.00144,70599.0,70595.0,0.13893857]
[1773482211790,0.00144,70599.0,70593.0,0.00899]
[1773482211993,0.00288,70599.0,70593.0,0.00899]
[1773482214683,0.00288,70599.0,70589.0,0.042493]
[1773482214891,0.00288,70599.0,70590.0,0.042492]
[1773482220409,0.00144,70599.0,70590.0,0.042492]
[1773482220597,0.00144,70598.0,70578.0,0.12871819]
[1773482221403,0.00144,70598.0,70589.0,0.042493]
[1773482221598,0.00144,70599.0,70589.0,0.042492]
[1773482221804,0.00144,70598.0,70590.0,0.12871819]
[1773482221999,0.00144,70597.0,70590.0,0.12871819]
[1773482224000,0.00144,70597.0,70587.0,0.042494]
[1773482224602,0.00144,70597.0,70587.0,0.17121219]
[1773482227809,0.00144,70597.0,70583.0,0.12871819]
[1773482228403,0.00144,70597.0,70587.0,0.042494]
[1773482229105,0.00144,70597.0,70585.0,0.042495]
[1773482230012,0.043928,70597.0,70585.0,0.042495]
[1773482231215,0.00144,70597.0,70578.0,0.12871819]
[1773482232011,0.042489,70595.0,70582.0,0.042497]
[1773482232411,0.00144,70597.0,70578.0,0.12871819]
[1773482233011,0.005,70589.0,70580.0,0.042498]
[1773482233216,0.00144,70588.0,70580.0,0.042498]
[1773482236214,0.00144,70588.0,70567.0,0.12871819]
[1773482236514,0.043934,70588.0,70563.0,0.12871819]
[1773482236711,0.042496,70585.0,70562.0,0.12871819]
[1773482237105,0.042496,70585.0,70572.0,0.042503]
[1773482238713,0.042496,70584.0,70572.0,0.042503]
[1773482241213,0.042496,70584.0,70569.0,0.12871819]
[1773482241214,0.042497,70582.0,70565.0,0.13254252]
[1773482241418,0.042497,70582.0,70562.0,0.13254252]
[1773482242417,0.00144,70581.0,70562.0,0.13254252]
[1773482243008,0.00144,70581.0,70569.0,0.042504]
[1773482245220,0.00144,70581.0,70570.0,0.042504]
[1773482245517,0.00144,70581.0,70571.0,0.13254252]
[1773482249119,0.042498,70580.0,70565.0,0.06978317]
[1773482250119,0.042498,70580.0,70568.0,0.13254252]
[1773482250823,0.00144,70579.0,70568.0,0.13254252]
[1773482251727,0.00144,70579.0,70568.0,0.17504752]
[1773482252222,0.00144,70578.0,70570.0,0.13254252]
[1773482252423,0.00144,70577.0,70570.0,0.13254252]
[1773482256328,0.00144,70577.0,70567.0,0.042506]
[1773482257227,0.00144,70577.0,70567.0,0.17504852]
[1773482260224,0.042501,70575.0,70561.0,0.042509]
[1773482260422,0.042501,70575.0,70563.0,0.13254252]
[1773482260928,0.00144,70574.0,70563.0,0.13254252]
[1773482262325,0.00144,70574.0,70550.0,0.33046817]
[1773482262326,0.00144,70574.0,70565.0,0.13254252]
[1773482267533,0.00144,70574.0,70567.0,0.13254252]
[1773482276147,0.00144,70573.0,70570.0,0.12232273]
[1773482276352,0.00109,70572.0,70570.0,0.12232273]
[1773482276549,0.042498,70581.0,70570.0,0.12232273]
[1773482276850,0.00144,70580.0,70570.0,0.12232273]
[1773482277045,0.042498,70581.0,70570.0,0.12232273]
[1773482277250,0.00144,70579.0,70570.0,0.12232273]
[1773482277642,0.00144,70578.0,70570.0,0.12232273]
[1773482277847,0.12377986,70592.0,70571.0,0.042506]
[1773482278053,0.00144,70591.0,70573.0,0.12232273]
[1773482278445,0.00144,70590.0,70573.0,0.12232273]
[1773482278750,0.00144,70589.0,70573.0,0.12232273]
[1773482278949,0.042495,70586.0,70574.0,0.042501]
[1773482279149,0.43565986,70596.0,70574.0,0.042501]
[1773482279150,0.00144,70585.0,70574.0,0.16482373]
[1773482279345,0.43565986,70596.0,70574.0,0.16482373]
[1773482279655,0.00144,70595.0,70574.0,0.20732973]
[1773482279855,0.43565986,70596.0,70574.0,0.20732973]
[1773482280052,0.042495,70586.0,70574.0,0.20732973]
[1773482280253,0.00144,70585.0,70574.0,0.20732973]
[1773482280452,0.00144,70584.0,70574.0,0.20732973]
[1773482280653,0.00144,70584.0,70574.0,0.16482373]
[1773482280855,0.00144,70583.0,70575.0,0.12232273]
[1773482281349,0.31188,70599.0,70577.0,0.12232273]
[1773482281654,0.12377986,70609.0,70586.0,0.12232273]
[1773482281655,0.042489,70595.0,70586.0,0.12232273]
[1773482285761,0.042488,70597.0,70586.0,0.12232273]
[1773482285962,0.042488,70597.0,70587.0,0.12232273]
[1773482286150,0.00144,70596.0,70587.0,0.12232273]
[1773482286551,0.00144,70595.0,70587.0,0.12232273]
[1773482287053,0.00144,70594.0,70587.0,0.12232273]
[1773482287257,0.00144,70594.0,70588.0,0.042506]
[1773482287457,0.042489,70596.0,70588.0,0.042506]
[1773482287658,0.00144,70595.0,70588.0,0.042506]
[1773482287964,0.042487,70598.0,70588.0,0.042506]
[1773482288261,0.00144,70597.0,70587.0,0.12232273]
[1773482288558,0.00144,70596.0,70587.0,0.12232273]
[1773482288760,0.00144,70596.0,70588.0,0.042506]
[1773482288959,0.00144,70595.0,70588.0,0.042506]
[1773482289350,0.042487,70598.0,70588.0,0.042506]
[1773482289556,0.00144,70597.0,70588.0,0.042506]
[1773482289960,0.042487,70598.0,70588.0,0.042506]
[1773482290357,0.00144,70597.0,70588.0,0.042506]
[1773482290558,0.00144,70596.0,70588.0,0.042506]
[1773482290751,0.042487,70599.0,70588.0,0.042506]
[1773482290963,0.00144,70595.0,70588.0,0.042506]
[1773482293963,0.12377986,70609.0,70590.0,0.16481473]
[1773482293964,0.00144,70594.0,70590.0,0.16481473]
[1773482294158,0.00144,70593.0,70590.0,0.16481473]
[1773482294359,0.00144,70593.0,70591.0,0.042506]
[1773482295050,0.00144,70592.0,70591.0,0.042506]
[1773482295856,0.042486,70601.0,70591.0,0.042506]
[1773482296055,0.00144,70600.0,70591.0,0.042506]
[1773482299363,0.00144,70599.0,70591.0,0.16482873]
[1773482302070,0.00144,70599.0,70591.0,0.12232273]
[1773482302565,0.00144,70599.0,70592.0,0.042506]
[1773482305370,0.00144,70598.0,70592.0,0.042506]
[1773482312070,0.00144,70598.0,70592.0,0.084996]
[1773482312276,0.00144,70597.0,70593.0,0.1185569]
[1773482312477,0.00144,70596.0,70593.0,0.1185569]
[1773482312782,0.00144,70595.0,70593.0,0.1185569]
[1773482312984,0.00144,70594.0,70593.0,0.1185569]
[1773482314179,0.00144,70594.0,70580.0,0.24367366]
[1773482314180,0.11878927,70605.0,70583.0,0.1185569]
[1773482314486,0.07412785,70610.0,70581.0,0.1185569]
[1773482314487,0.00432,70599.0,70581.0,0.1185569]
[1773482315082,0.00432,70599.0,70593.0,0.009]
[1773482315682,0.009,70594.0,70593.0,0.009]
[1773482316186,0.01044,70594.0,70593.0,0.009]
[1773482316691,0.00144,70594.0,70588.0,0.1185569]
[1773482316881,0.00144,70593.0,70588.0,0.1185569]
[1773482317087,0.00144,70592.0,70588.0,0.1185569]
[1773482317282,0.042486,70600.0,70588.0,0.1185569]
[1773482317484,0.00144,70599.0,70588.0,0.1185569]
[1773482317987,0.00144,70598.0,70588.0,0.1185569]
[1773482318380,0.042486,70600.0,70588.0,0.1185569]
[1773482318583,0.00144,70597.0,70588.0,0.1185569]
[1773482318887,0.042486,70600.0,70588.0,0.1185569]
[1773482319081,0.00144,70596.0,70588.0,0.1185569]
[1773482319484,0.00144,70595.0,70588.0,0.1185569]
[1773482319889,0.042487,70599.0,70588.0,0.1185569]
[1773482320090,0.00144,70594.0,70588.0,0.1185569]
[1773482321389,0.042487,70599.0,70588.0,0.1185569]
[1773482321689,0.00144,70598.0,70581.0,0.1185569]
[1773482321890,0.00144,70597.0,70581.0,0.1185569]
[1773482322591,0.00144,70596.0,70593.0,0.04249]
[1773482322783,0.00144,70595.0,70593.0,0.04249]
[1773482322983,0.00144,70594.0,70593.0,0.04249]
[1773482323289,0.042483,70606.0,70594.0,0.042489]
[1773482323490,0.00144,70605.0,70594.0,0.042489]
[1773482323681,0.00432,70601.0,70594.0,0.042489]
[1773482323876,0.00432,70601.0,70595.0,0.042489]
[1773482325590,0.00144,70605.0,70595.0,0.042489]
[1773482327896,0.00144,70605.0,70593.0,0.04249]
[1773482328895,0.042486,70600.0,70588.0,0.15777739]
[1773482330600,0.00144,70605.0,70588.0,0.11528439]
[1773482330795,0.1150573,70599.0,70576.0,0.28526083]
[1773482331096,0.1150573,70599.0,70579.0,0.042498]
[1773482331492,0.00432,70588.0,70579.0,0.042498]
[1773482331694,0.00144,70587.0,70577.0,0.0425]
[1773482332804,0.00144,70587.0,70576.0,0.11528439]
[1773482333889,0.00144,70587.0,70576.0,0.15778439]
[1773482334498,0.00144,70587.0,70570.0,0.12522237]
[1773482335697,0.00144,70587.0,70573.0,0.042502]
[1773482335895,0.042493,70588.0,70574.0,0.042501]
[1773482336094,0.00432,70582.0,70574.0,0.042501]
[1773482337705,0.00432,70582.0,70562.0,0.12522237]
[1773482338899,0.00432,70582.0,70571.0,0.12522237]
[1773482340109,0.00432,70582.0,70571.0,0.16772537]
[1773482340406,0.042495,70585.0,70572.0,0.12522237]
[1773482341102,0.042495,70585.0,70573.0,0.16772437]
[1773482341298,0.00432,70581.0,70573.0,0.16772437]
[1773482341504,0.00144,70580.0,70573.0,0.16772437]
[1773482343510,0.042492,70590.0,70570.0,0.07412785]
[1773482343815,0.00144,70589.0,70571.0,0.12522237]
[1773482344013,0.00144,70588.0,70571.0,0.12522237]
[1773482344210,0.00144,70587.0,70571.0,0.12522237]
[1773482344409,0.00144,70586.0,70571.0,0.12522237]
[1773482344610,0.00144,70585.0,70571.0,0.12522237]
[1773482344914,0.00144,70585.0,70576.0,0.16772237]
[1773482346313,0.00144,70585.0,70576.0,0.12522237]
[1773482353314,0.042492,70591.0,70580.0,0.12522237]
[1773482353513,0.00144,70590.0,70580.0,0.12522237]
[1773482354017,0.043932,70590.0,70580.0,0.12522237]
[1773482355322,0.00144,70589.0,70580.0,0.12522237]
[1773482355522,0.00144,70588.0,70580.0,0.12522237]
[1773482379631,0.11310725,70588.0,70566.0,0.11184876]
[1773482379931,0.042499,70579.0,70567.0,0.15435476]
[1773482380121,0.00144,70578.0,70567.0,0.15435476]
[1773482384032,0.04394,70578.0,70567.0,0.11184876]
[1773482390440,0.00144,70578.0,70567.0,0.11184876]
[1773482390835,0.00144,70577.0,70570.0,0.11420103]
[1773482391035,0.00144,70576.0,70570.0,0.11420103]
[1773482391340,0.00144,70575.0,70573.0,0.10965473]
[1773482391529,0.11426348,70593.0,70573.0,0.10965473]
[1773482391530,0.005,70593.0,70573.0,0.10965473]
[1773482391836,0.042492,70591.0,70571.0,0.10965473]
[1773482392040,0.00144,70590.0,70571.0,0.10965473]
[1773482392538,0.042492,70591.0,70571.0,0.10965473]
[1773482392741,0.00144,70590.0,70571.0,0.10965473]
[1773482392926,0.00144,70590.0,70578.0,0.10965473]
[1773482393127,0.00144,70589.0,70578.0,0.10965473]
[1773482393537,0.042492,70590.0,70578.0,0.10965473]
[1773482393737,0.00144,70589.0,70578.0,0.10965473]
[1773482394236,0.00144,70588.0,70578.0,0.10965473]
[1773482394839,0.00144,70587.0,70578.0,0.10965473]
[1773482396945,0.00144,70587.0,70575.0,0.042501]
[1773482397238,0.00144,70587.0,70575.0,0.15215573]
[1773482398437,0.042499,70578.0,70556.0,0.10965473]
[1773482398647,0.00144,70577.0,70562.0,0.042509]
[1773482398835,0.042505,70569.0,70542.0,0.10965473]
[1773482399138,0.11149771,70570.0,70546.0,0.10965473]
[1773482399441,0.11149771,70570.0,70556.0,0.001]
[1773482399637,0.11293771,70569.0,70556.0,0.003]
[1773482399830,0.00144,70568.0,70556.0,0.003]
[1773482400026,0.00144,70568.0,70556.0,0.001]
[1773482400232,0.042508,70564.0,70556.0,0.001]
[1773482400440,0.11293771,70568.0,70556.0,0.001]
[1773482400836,0.04251,70561.0,70547.0,0.042517]
[1773482401037,0.00144,70560.0,70546.0,0.11065473]
[1773482401237,0.00144,70559.0,70546.0,0.001]
[1773482401434,0.11293771,70559.0,70546.0,0.001]
[1773482401634,0.042514,70555.0,70546.0,0.001]
[1773482401835,0.04401871,70558.0,70540.0,0.10965473]
[1773482402038,0.11149771,70579.0,70552.0,0.10965473]
[1773482402236,0.042505,70569.0,70554.0,0.10965473]
[1773482402537,0.00144,70566.0,70554.0,0.10965473]
[1773482402742,0.00144,70565.0,70556.0,0.042512]
[1773482402933,0.00144,70564.0,70556.0,0.15216673]
[1773482403333,0.00144,70563.0,70560.0,0.10965473]
[1773482403537,0.042499,70579.0,70567.0,0.10965473]
[1773482403843,0.00144,70578.0,70570.0,0.10965473]
[1773482404029,0.31188,70590.0,70570.0,0.10965473]
[1773482404030,0.00288,70579.0,70570.0,0.10965473]
[1773482404239,0.00288,70579.0,70549.0,0.042517]
[1773482404240,0.042495,70586.0,70573.0,0.10965473]
[1773482404747,0.00144,70585.0,70575.0,0.10965473]
[1773482404946,0.00144,70584.0,70575.0,0.10965473]
[1773482405147,0.00144,70583.0,70575.0,0.10965473]
[1773482405446,0.00144,70582.0,70575.0,0.10965473]
[1773482405742,0.00144,70581.0,70575.0,0.10965473]
[1773482405949,0.00144,70580.0,70575.0,0.10965473]
[1773482406255,0.00144,70585.0,70571.0,0.10718137]
[1773482406539,0.07414539,70580.0,70569.0,0.10965473]
[1773482406741,0.00432,70580.0,70569.0,0.10965473]
[1773482407150,0.00432,70580.0,70569.0,0.02965473]
[1773482407341,0.00432,70580.0,70561.0,0.09346341]
[1773482407537,0.00432,70580.0,70562.0,0.10965473]
[1773482408157,0.00432,70580.0,70564.0,0.10965473]
[1773482408952,0.00432,70580.0,70562.0,0.10965473]
[1773482409344,0.00432,70580.0,70566.0,0.042506]
[1773482409543,0.00144,70584.0,70555.0,0.042513]
[1773482409544,0.11149771,70575.0,70555.0,0.042513]
[1773482409743,0.07414539,70570.0,70556.0,0.042512]
[1773482409949,0.00144,70569.0,70556.0,0.042512]
[1773482410145,0.00432,70568.0,70556.0,0.042512]
[1773482411550,0.042502,70575.0,70559.0,0.10965473]
[1773482411844,0.00144,70574.0,70559.0,0.10965473]
[1773482412052,0.00144,70573.0,70552.0,0.10965473]
[1773482412242,0.00144,70572.0,70567.0,0.009]
[1773482412451,0.00144,70571.0,70567.0,0.009]
[1773482412944,0.00144,70570.0,70567.0,0.009]
[1773482420448,0.00144,70569.0,70567.0,0.009]
[1773482420650,0.00144,70569.0,70563.0,0.10965473]
[1773482420651,0.00144,70569.0,70553.0,0.10965473]
[1773482421148,0.00144,70569.0,70559.0,0.04251]
[1773482421759,0.00144,70569.0,70559.0,0.16123347]
[1773482422255,0.00144,70569.0,70559.0,0.11872347]
[1773482423945,0.00144,70569.0,70561.0,0.042509]
[1773482424159,0.00144,70569.0,70562.0,0.11872347]
[1773482425148,0.00144,70568.0,70562.0,0.11872347]
[1773482431856,0.042497,70582.0,70568.0,0.11872347]
[1773482432157,0.00144,70581.0,70573.0,0.11872347]
[1773482432353,0.00144,70580.0,70573.0,0.11872347]
[1773482432758,0.00432,70579.0,70573.0,0.11872347]
[1773482433555,0.11050233,70596.0,70570.0,0.11872347]
[1773482433749,0.13163824,70598.0,70569.0,0.07418167]
[1773482433750,0.042495,70586.0,70574.0,0.11872347]
[1773482433948,0.00144,70585.0,70574.0,0.11872347]
[1773482434556,0.00432,70584.0,70574.0,0.11872347]
[1773482436163,0.00144,70583.0,70575.0,0.042501]
[1773482436367,0.00144,70582.0,70576.0,0.11872347]
[1773482437259,0.00144,70582.0,70573.0,0.042502]
[1773482437751,0.00143,70582.0,70573.0,0.042502]
[1773482437951,0.00143,70582.0,70573.0,0.16122547]
[1773482438858,0.00143,70582.0,70574.0,0.042501]
[1773482439556,0.00143,70582.0,70551.0,0.11872347]
[1773482439557,0.042508,70564.0,70551.0,0.11872347]
[1773482439762,0.00144,70563.0,70553.0,0.11872347]
[1773482439955,0.00144,70562.0,70553.0,0.11872347]
[1773482440148,0.00144,70561.0,70553.0,0.11872347]
[1773482440352,0.00144,70560.0,70553.0,0.11872347]
[1773482441460,0.00144,70560.0,70549.0,0.16124047]
[1773482441849,0.07562167,70560.0,70553.0,0.001]
[1773482442054,0.07562167,70560.0,70536.0,0.00010005]
[1773482442055,0.11050233,70558.0,70538.0,0.11872347]
[1773482442255,0.20363952,70557.0,70538.0,0.16124647]
[1773482442457,0.11050233,70558.0,70538.0,0.16124647]
[1773482442760,0.00432,70550.0,70538.0,0.16124647]
[1773482442960,0.00144,70549.0,70538.0,0.16124647]
[1773482443552,0.00144,70549.0,70539.0,0.042522]
[1773482445260,0.00144,70549.0,70540.0,0.042522]
[1773482446158,0.00144,70549.0,70540.0,0.16124547]
[1773482446862,0.00144,70549.0,70541.0,0.042521]
[1773482447064,0.00144,70549.0,70542.0,0.042521]
[1773482447264,0.00144,70549.0,70542.0,0.16124447]
[1773482451068,0.00144,70549.0,70542.0,0.042521]
[1773482454364,0.00144,70549.0,70538.0,0.11459059]
[1773482454365,0.00144,70549.0,70540.0,0.042522]
[1773482454665,0.00144,70549.0,70541.0,0.042521]
[1773482455764,0.00029891,70549.0,70542.0,0.042521]
[1773482457465,0.00029891,70549.0,70542.0,0.1630077]
[1773482458669,0.00029891,70549.0,70542.0,0.042521]
[1773482461067,0.00029891,70549.0,70540.0,0.042522]
[1773482461267,0.00029891,70549.0,70541.0,0.042521]
[1773482462071,0.042524,70537.0,70536.0,0.00010005]
[1773482462255,0.042524,70537.0,70525.0,0.15388153]
[1773482462256,0.043964,70537.0,70525.0,0.15388153]
[1773482462456,0.00144,70537.0,70515.0,0.11135053]
[1773482462669,0.00144,70537.0,70517.0,0.11135053]
[1773482462967,0.00144,70537.0,70519.0,0.11311428]
[1773482463162,0.00144,70537.0,70517.0,0.11440056]
[1773482463367,0.04263576,70536.0,70522.0,0.042533]
[1773482464568,0.042525,70535.0,70522.0,0.043533]
[1773482464762,0.00011076,70536.0,70523.0,0.042532]
[1773482464965,0.00432,70533.0,70523.0,0.042532]
[1773482465771,0.04263576,70536.0,70523.0,0.042532]
[1773482467767,0.042526,70535.0,70523.0,0.042532]
[1773482469074,0.042526,70534.0,70521.0,0.042533]
[1773482469274,0.00432,70532.0,70521.0,0.042533]
[1773482469475,0.00432,70532.0,70522.0,0.042533]
[1773482469677,0.00144,70548.0,70544.0,0.042519]
[1773482469863,0.00144,70547.0,70543.0,0.04252]
[1773482471165,0.00144,70548.0,70543.0,0.04252]
[1773482475569,0.00144,70548.0,70541.0,0.042521]
[1773482476775,0.00144,70548.0,70542.0,0.04252]
[1773482477075,0.00144,70548.0,70543.0,0.04252]
[1773482478588,0.11591589,70568.0,70538.0,0.07422676]
[1773482478877,0.042509,70563.0,70540.0,0.07469916]
[1773482479072,0.11591589,70559.0,70534.0,0.07420181]
[1773482479378,0.11591589,70557.0,70545.0,0.042519]
[1773482479681,0.11591589,70556.0,70543.0,0.04252]
[1773482479977,0.11591589,70556.0,70545.0,0.042519]
[1773482480283,0.11591589,70556.0,70540.0,0.00144]
[1773482480471,0.11591589,70556.0,70537.0,0.00144]
[1773482481183,0.11591589,70556.0,70537.0,0.0909343]
[1773482481776,0.042512,70557.0,70545.0,0.042519]
[1773482482081,0.00144,70558.0,70545.0,0.042519]
[1773482482282,0.00144,70557.0,70540.0,0.0901405]
[1773482482490,0.00144,70557.0,70540.0,0.16436726]
[1773482483378,0.00144,70557.0,70541.0,0.042521]
[1773482483583,0.00144,70557.0,70544.0,0.042519]
[1773482484382,0.00144,70557.0,70546.0,0.042518]
[1773482484585,0.12177557,70571.0,70540.0,0.09051213]
[1773482484781,0.20988554,70570.0,70551.0,0.09004188]
[1773482484982,0.20988554,70569.0,70551.0,0.09004188]
[1773482485179,0.07422676,70580.0,70539.0,0.042522]
[1773482485180,0.00144,70568.0,70557.0,0.08982804]
[1773482485382,0.00144,70567.0,70557.0,0.08982804]
[1773482485581,0.00144,70567.0,70560.0,0.04251]
[1773482486081,0.00144,70567.0,70561.0,0.042509]
[1773482489084,0.317,70585.0,70553.0,0.00144]
[1773482489085,0.005,70585.0,70577.0,0.0425]
[1773482489386,0.005,70585.0,70576.0,0.0425]
[1773482490191,0.006,70585.0,70577.0,0.042499]
[1773482490488,0.006,70585.0,70578.0,0.042499]
[1773482490790,0.00144,70584.0,70578.0,0.042499]
[1773482490983,0.00144,70583.0,70578.0,0.042499]
[1773482491184,0.00144,70582.0,70578.0,0.042499]
[1773482491583,0.042492,70591.0,70578.0,0.042499]
[1773482491889,0.00144,70590.0,70578.0,0.042499]
[1773482492091,0.042492,70591.0,70576.0,0.0425]
[1773482492291,0.00144,70589.0,70576.0,0.0425]
[1773482492789,0.00144,70588.0,70576.0,0.0425]
[1773482493090,0.042492,70591.0,70576.0,0.0425]
[1773482493291,0.00144,70587.0,70576.0,0.0425]
[1773482493790,0.00144,70586.0,70576.0,0.0425]
[1773482494089,0.042492,70591.0,70576.0,0.0425]
[1773482494290,0.00144,70585.0,70576.0,0.0425]
[1773482494789,0.00144,70584.0,70576.0,0.0425]
[1773482495086,0.042492,70591.0,70576.0,0.0425]
[1773482495287,0.00144,70590.0,70576.0,0.0425]
[1773482495588,0.042492,70591.0,70576.0,0.0425]
[1773482495787,0.00144,70590.0,70576.0,0.0425]
[1773482496186,0.00144,70589.0,70576.0,0.0425]
[1773482496584,0.042492,70591.0,70576.0,0.0425]
[1773482496785,0.00144,70590.0,70576.0,0.0425]
[1773482496990,0.00144,70590.0,70577.0,0.042499]
[1773482497182,0.00144,70589.0,70579.0,0.042498]
[1773482497384,0.00144,70588.0,70579.0,0.042498]
[1773482497686,0.00144,70587.0,70577.0,0.0425]
[1773482497988,0.00144,70586.0,70577.0,0.0425]
[1773482498187,0.00144,70585.0,70577.0,0.0425]
[1773482499186,0.00144,70585.0,70573.0,0.0927391]
[1773482499387,0.00144,70585.0,70575.0,0.042501]
[1773482501581,0.12177557,70591.0,70568.0,0.10914283]
[1773482501782,0.042493,70589.0,70568.0,0.10914283]
[1773482503091,0.042493,70589.0,70576.0,0.0425]
[1773482503288,0.2085101,70588.0,70576.0,0.0425]
[1773482503483,0.042493,70589.0,70576.0,0.0425]
[1773482503692,0.2085101,70588.0,70576.0,0.0425]
[1773482503888,0.042493,70589.0,70576.0,0.0425]
[1773482506494,0.16426857,70589.0,70576.0,0.0425]
[1773482506692,0.12177557,70588.0,70576.0,0.0425]
[1773482506996,0.042494,70588.0,70574.0,0.042501]
[1773482509498,0.042494,70588.0,70575.0,0.042501]
[1773482515600,0.042494,70588.0,70576.0,0.0425]
[1773482515800,0.00144,70587.0,70576.0,0.0425]
[1773482516196,0.042494,70588.0,70576.0,0.0425]
[1773482516392,0.00144,70586.0,70576.0,0.0425]
[1773482516795,0.00144,70585.0,70576.0,0.0425]
[1773482517197,0.042494,70588.0,70576.0,0.0425]
[1773482517395,0.00144,70584.0,70576.0,0.0425]
[1773482519603,0.00144,70584.0,70575.0,0.042501]
[1773482521205,0.21004067,70583.0,70575.0,0.042501]
[1773482521401,0.00144,70584.0,70575.0,0.042501]
[1773482521705,0.21004067,70583.0,70575.0,0.042501]
[1773482521908,0.00144,70584.0,70575.0,0.042501]
[1773482522106,0.21004067,70583.0,70575.0,0.042501]
[1773482522307,0.00144,70584.0,70575.0,0.042501]
[1773482522509,0.21004052,70583.0,70575.0,0.042501]
[1773482522694,0.00144,70584.0,70575.0,0.042501]
[1773482522898,0.21004052,70583.0,70575.0,0.042501]
[1773482523099,0.00144,70584.0,70575.0,0.042501]
[1773482523299,0.21004037,70583.0,70575.0,0.042501]
[1773482523509,0.00144,70584.0,70575.0,0.042501]
[1773482523709,0.21004037,70583.0,70570.0,0.03608428]
[1773482523911,0.00144,70584.0,70570.0,0.03608428]
[1773482524808,0.00144,70584.0,70565.0,0.00144]
[1773482525003,0.00144,70584.0,70521.0,0.74228248]
[1773482525004,0.11177997,70569.0,70536.0,0.42325217]
[1773482525312,0.07415873,70562.0,70539.0,0.03819606]
[1773482525611,0.00144,70561.0,70541.0,0.03819606]
[1773482526200,0.042511,70559.0,70537.0,0.00144]
[1773482526403,0.11310554,70558.0,70537.0,0.00144]
[1773482526710,0.11310554,70558.0,70538.0,0.03589756]
[1773482526909,0.042511,70559.0,70540.0,0.03131783]
[1773482527112,0.042511,70559.0,70546.0,0.042518]
[1773482531206,0.042503,70572.0,70558.0,0.042511]
[1773482531409,0.042506,70567.0,70552.0,0.042515]
[1773482531610,0.042506,70567.0,70553.0,0.042514]
[1773482532010,0.15198994,70567.0,70553.0,0.042514]
[1773482532610,0.10954124,70569.0,70552.0,0.042515]
[1773482532808,0.10954124,70568.0,70550.0,0.042516]
[1773482533008,0.07415873,70570.0,70550.0,0.042516]
[1773482533218,0.1096622,70563.0,70550.0,0.042516]
[1773482533516,0.00144,70562.0,70550.0,0.042516]
[1773482536122,0.15391022,70562.0,70548.0,0.042517]
[1773482537220,0.15391022,70562.0,70549.0,0.042516]
[1773482537723,0.11212792,70561.0,70548.0,0.042517]
[1773482542413,0.11212792,70561.0,70549.0,0.042516]
[1773482548512,0.11648219,70560.0,70549.0,0.042516]
[1773482549325,0.042511,70559.0,70546.0,0.042518]
[1773482549526,0.042511,70559.0,70547.0,0.042518]
[1773482553130,0.11648219,70560.0,70548.0,0.042517]
[1773482561950,0.11648219,70559.0,70545.0,0.042519]
[1773482562156,0.11648219,70557.0,70542.0,0.00144]
[1773482562656,0.11648219,70557.0,70543.0,0.04252]
[1773482562846,0.11648219,70555.0,70541.0,0.042521]
[1773482564049,0.11648219,70555.0,70542.0,0.04252]
[1773482568647,0.11298934,70554.0,70539.0,0.00144]
[1773482569659,0.11298934,70554.0,70538.0,0.00016447]
[1773482569845,0.11298934,70554.0,70539.0,0.00144]
[1773482570049,0.11298934,70554.0,70541.0,0.042521]
[1773482571958,0.11298934,70554.0,70542.0,0.042521]
[1773482572160,0.11298934,70554.0,70543.0,0.04252]
[1773482572454,0.00144,70556.0,70545.0,0.042519]
[1773482573955,0.11344756,70556.0,70545.0,0.042519]
[1773482574762,0.11344756,70556.0,70543.0,0.04252]
[1773482574960,0.11309698,70555.0,70543.0,0.04252]